bitfinex/quotes_BTCUSD_20240701
["timestamp","ask_amount","ask_price","bid_price","bid_amount"]
[1719833977148,0.00284,62778.0,62777.0,2.56248138]
[1719833977348,0.00184,62778.0,62777.0,2.55248138]
[1719833977544,0.00184,62778.0,62777.0,2.55448138]
[1719833978056,0.00184,62778.0,62777.0,2.03589338]
[1719833978231,0.00184,62778.0,62777.0,1.89430538]
[1719833979697,0.00284,62778.0,62777.0,1.82060538]
[1719833979904,0.00284,62778.0,62777.0,1.90230538]
[1719833981645,0.00284,62778.0,62777.0,1.92118135]
[1719833984057,0.00284,62778.0,62777.0,1.72118135]
[1719833984290,0.00284,62778.0,62777.0,0.21103538]
[1719833984474,0.00284,62778.0,62777.0,0.18126298]
[1719833984659,0.02603904,62778.0,62777.0,0.18126298]
[1719833984857,0.01272307,62778.0,62777.0,0.18126298]
[1719833985057,0.02671231,62778.0,62777.0,0.18126298]
[1719833985276,0.01272307,62778.0,62777.0,0.18126298]
[1719833985495,0.01582924,62778.0,62777.0,0.27191979]
[1719833985713,0.01582924,62778.0,62777.0,0.28191979]
[1719833985714,0.01172306,62778.0,62777.0,0.28191979]
[1719833985943,0.0257123,62778.0,62777.0,0.27891979]
[1719833986068,0.01172306,62778.0,62777.0,0.27891979]
[1719833986287,0.0257123,62778.0,62777.0,0.28091979]
[1719833986540,0.01172306,62778.0,62777.0,0.28091979]
[1719833986741,0.0267123,62778.0,62777.0,0.28791979]
[1719833986958,0.01272306,62778.0,62777.0,0.28791979]
[1719833987163,0.0267123,62778.0,62777.0,0.28791979]
[1719833987372,0.01172306,62778.0,62777.0,0.27891979]
[1719833987573,0.01172306,62778.0,62777.0,0.28791979]
[1719833987685,0.01272306,62778.0,62777.0,0.28791979]
[1719833987883,0.02567023,62778.0,62777.0,0.28091979]
[1719833988936,0.01578717,62778.0,62777.0,0.28091979]
[1719833989137,0.02566984,62778.0,62777.0,0.28091979]
[1719833989392,0.02666984,62778.0,62777.0,0.28791979]
[1719833989583,0.02666986,62778.0,62777.0,0.28791979]
[1719833989785,1.38451744,62778.0,62777.0,0.016924]
[1719833989983,1.34180686,62778.0,62777.0,0.016924]
[1719833990184,1.3849265,62778.0,62777.0,0.016924]
[1719833990391,1.37974757,62778.0,62777.0,0.016924]
[1719833991046,1.37874757,62778.0,62777.0,0.007924]
[1719833991246,1.37774757,62778.0,62777.0,0.002924]
[1719833992131,1.37785,62778.0,62777.0,0.002924]
[1719833992538,1.37787699,62778.0,62777.0,0.002924]
[1719833992689,1.37787699,62778.0,62777.0,0.004924]
[1719833994430,1.37760579,62778.0,62777.0,0.004924]
[1719833995505,1.32474524,62778.0,62777.0,0.004924]
[1719833995746,1.37744022,62778.0,62777.0,0.004924]
[1719833996331,1.17734022,62778.0,62777.0,0.004924]
[1719833997142,1.13452667,62778.0,62777.0,0.004924]
[1719833998506,1.12464524,62778.0,62777.0,0.004924]
[1719833998712,1.13452662,62778.0,62777.0,0.004924]
[1719833999799,1.13452662,62778.0,62777.0,0.014924]
[1719833999981,0.81594462,62778.0,62777.0,0.004924]
[1719834001078,0.01948962,62778.0,62777.0,0.17726298]
[1719834001281,0.00960824,62778.0,62777.0,0.9521754]
[1719834001693,0.00084,62778.0,62777.0,0.9521754]
[1719834002067,0.00084,62778.0,62777.0,1.1521754]
[1719834002463,0.00084,62778.0,62777.0,1.1501754]
[1719834002882,0.00184,62778.0,62777.0,1.1561754]
[1719834003086,0.00184,62778.0,62777.0,1.1541754]
[1719834003493,0.00284,62778.0,62777.0,1.1641754]
[1719834003695,0.00284,62778.0,62777.0,1.4827634]
[1719834004921,0.00284,62778.0,62777.0,0.9641754]
[1719834005121,0.00284,62778.0,62777.0,0.8824754]
[1719834005325,0.00284,62778.0,62777.0,0.9641754]
[1719834005531,0.00284,62778.0,62777.0,0.8824754]
[1719834005750,0.00284,62778.0,62777.0,0.9641754]
[1719834006124,0.00284,62778.0,62777.0,0.96098987]
[1719834006328,0.01272419,62778.0,62777.0,0.17926298]
[1719834006736,0.02438167,62778.0,62777.0,0.18926298]
[1719834006956,0.02438167,62778.0,62777.0,0.17926298]
[1719834007158,0.18367267,62778.0,62777.0,0.17926298]
[1719834007363,0.18367188,62778.0,62777.0,0.21411988]
[1719834007765,0.82083588,62778.0,62777.0,0.016924]
[1719834008734,0.82083588,62778.0,62777.0,0.026924]
[1719834009367,0.50225388,62778.0,62777.0,0.026924]
[1719834009586,0.02438088,62778.0,62777.0,0.18926298]
[1719834009772,0.02438088,62778.0,62777.0,0.28446814]
[1719834010174,0.0127234,62778.0,62777.0,0.28446814]
[1719834010377,0.00284,62778.0,62777.0,0.28446814]
[1719834010977,0.01272436,62778.0,62777.0,0.28446814]
[1719834013369,0.01272436,62778.0,62777.0,1.16885014]
[1719834013581,0.00284,62778.0,62777.0,1.69062375]
[1719834013784,0.00284,62778.0,62777.0,2.00921175]
[1719834014404,0.00084,62778.0,62777.0,1.99321175]
[1719834014581,0.00184,62778.0,62777.0,2.00321175]
[1719834015803,0.00284,62778.0,62777.0,2.01721175]
[1719834016277,0.00184,62778.0,62777.0,2.00321175]
[1719834016743,0.00184,62778.0,62777.0,2.00721175]
[1719834017101,0.00284,62778.0,62777.0,2.02121175]
[1719834017988,0.00284,62778.0,62777.0,2.22121175]
[1719834020206,0.00284,62778.0,62777.0,2.42551175]
[1719834020832,0.00284,62778.0,62777.0,2.74409975]
[1719834021610,0.00284,62778.0,62777.0,2.66279975]
[1719834022012,0.00284,62778.0,62777.0,2.71053767]
[1719834023382,0.00284,62778.0,62777.0,2.7105205]
[1719834023557,0.00284,62778.0,62777.0,2.66279975]
[1719834024398,0.00284,62778.0,62777.0,2.68170502]
[1719834024624,0.00284,62778.0,62777.0,2.67851941]
[1719834025458,0.00284,62778.0,62777.0,2.85981941]
[1719834025667,0.00284,62778.0,62777.0,2.33693141]
[1719834026291,0.00284,62778.0,62777.0,1.83043141]
[1719834026498,0.00284,62778.0,62777.0,1.51184341]
[1719834026919,0.00284,62778.0,62777.0,1.71184341]
[1719834027130,0.00284,62778.0,62777.0,1.51184341]
[1719834029665,0.00184,62778.0,62777.0,1.49784341]
[1719834029997,0.00284,62778.0,62777.0,1.31184341]
[1719834030198,0.00284,62778.0,62777.0,1.51184341]
[1719834030532,0.00184,62778.0,62777.0,1.49784341]
[1719834030757,0.00284,62778.0,62777.0,1.51184341]
[1719834031838,0.00284,62778.0,62777.0,1.19325541]
[1719834032056,0.00284,62778.0,62777.0,0.99325541]
[1719834032267,0.00284,62778.0,62777.0,1.19325541]
[1719834032477,0.00284,62778.0,62777.0,0.99325541]
[1719834032865,0.00284,62778.0,62777.0,0.79325541]
[1719834033064,0.00284,62778.0,62777.0,0.99325541]
[1719834033742,0.00284,62778.0,62777.0,1.19325541]
[1719834034548,0.00284,62778.0,62777.0,0.29646814]
[1719834034760,0.1015257,62778.0,62777.0,0.29646814]
[1719834035017,0.10877397,62778.0,62777.0,0.29646814]
[1719834035437,0.26806497,62778.0,62777.0,0.28646814]
[1719834035637,0.26806497,62778.0,62777.0,0.20126298]
[1719834035851,0.25817927,62778.0,62777.0,0.20126298]
[1719834036056,0.2680654,62778.0,62777.0,0.20126298]
[1719834037201,0.2680654,62778.0,62777.0,0.19126298]
[1719834037615,0.2680654,62778.0,62777.0,0.20126298]
[1719834037821,0.2680654,62778.0,62777.0,0.2223147]
[1719834038228,0.2680654,62778.0,62777.0,0.2123147]
[1719834039037,0.25817927,62778.0,62777.0,0.2123147]
[1719834039244,0.26806476,62778.0,62777.0,0.2123147]
[1719834039718,0.57676127,62778.0,62777.0,0.2123147]
[1719834040487,0.89534327,62778.0,62777.0,0.028924]
[1719834041572,0.89434327,62778.0,62777.0,0.014924]
[1719834041775,0.89534327,62778.0,62777.0,0.028924]
[1719834041980,0.90422909,62778.0,62777.0,0.03791183]
[1719834042200,0.01897409,62778.0,62777.0,0.18625081]
[1719834042436,0.01997409,62778.0,62777.0,0.20025081]
[1719834042689,0.01008827,62778.0,62777.0,0.20025081]
[1719834042890,0.00908827,62778.0,62777.0,0.18625081]
[1719834043091,0.01008827,62778.0,62777.0,0.19625081]
[1719834043314,0.01997476,62778.0,62777.0,0.19625081]
[1719834043696,0.01897476,62778.0,62777.0,0.26795081]
[1719834043905,0.01897476,62778.0,62777.0,0.18625081]
[1719834044108,0.01272649,62778.0,62777.0,0.20043635]
[1719834044677,0.01072649,62778.0,62777.0,0.18943635]
[1719834044823,0.01172649,62778.0,62777.0,0.21643632]
[1719834044994,0.01272649,62778.0,62777.0,0.21643632]
[1719834045441,0.01272663,62778.0,62777.0,0.57573032]
[1719834045641,0.01272663,62778.0,62777.0,1.61120632]
[1719834045847,0.01272663,62778.0,62777.0,1.92979432]
[1719834046020,0.00284,62778.0,62777.0,2.13409432]
[1719834046574,0.00084,62778.0,62777.0,2.10709432]
[1719834046860,0.00184,62778.0,62777.0,2.13509432]
[1719834047097,0.00284,62778.0,62777.0,2.13509432]
[1719834053775,0.00284,62778.0,62777.0,2.15476078]
[1719834057680,0.00284,62778.0,62777.0,2.69316327]
[1719834058757,0.00284,62778.0,62777.0,1.94897527]
[1719834059836,0.00284,62778.0,62777.0,1.74897527]
[1719834060043,0.00284,62778.0,62777.0,1.94897527]
[1719834061230,0.00284,62778.0,62777.0,1.63038727]
[1719834062416,0.00284,62778.0,62777.0,1.43038727]
[1719834062619,0.00284,62778.0,62777.0,1.11179927]
[1719834062820,0.20714,62778.0,62777.0,0.59321127]
[1719834063805,0.20714,62778.0,62777.0,0.67491127]
[1719834064628,0.20714,62778.0,62777.0,0.59321127]
[1719834064838,0.20714,62778.0,62777.0,0.67491127]
[1719834065160,0.20714,62778.0,62777.0,0.47491127]
[1719834065946,0.21702203,62778.0,62777.0,0.21425081]
[1719834066384,0.22428375,62778.0,62777.0,0.21425081]
[1719834066583,0.21702203,62778.0,62777.0,0.21425081]
[1719834066789,0.22428375,62778.0,62777.0,0.21425081]
[1719834067076,0.22428375,62778.0,62777.0,0.29595081]
[1719834067717,0.38357475,62778.0,62777.0,0.20425081]
[1719834067913,0.70215589,62778.0,62777.0,0.19126298]
[1719834068261,0.70215559,62778.0,62777.0,0.20126298]
[1719834068786,0.70215559,62778.0,62777.0,0.19126298]
[1719834071106,0.69227472,62778.0,62777.0,0.19126298]
[1719834071318,0.70215334,62778.0,62777.0,0.19126298]
[1719834072429,0.70215334,62778.0,62777.0,0.2204847]
[1719834073293,1.02073534,62778.0,62777.0,0.028924]
[1719834074280,1.01085672,62778.0,62777.0,0.028924]
[1719834074484,1.02073554,62778.0,62777.0,0.028924]
[1719834077514,1.01085672,62778.0,62777.0,0.028924]
[1719834077717,1.02073566,62778.0,62777.0,0.028924]
[1719834078140,1.02073568,62778.0,62777.0,0.028924]
[1719834078559,0.70215368,62778.0,62777.0,0.028924]
[1719834079567,0.70215368,62778.0,62777.0,0.05191183]
[1719834079771,0.01998068,62778.0,62777.0,0.20126298]
[1719834079977,0.01998068,62778.0,62777.0,0.83955698]
[1719834080275,0.01271896,62778.0,62777.0,1.15814498]
[1719834080597,0.01271896,62778.0,62777.0,0.95814498]
[1719834080598,0.00284,62778.0,62777.0,0.95814498]
[1719834080800,0.01272003,62778.0,62777.0,1.04773918]
[1719834082553,0.01272003,62778.0,62777.0,0.85043918]
[1719834083272,0.01272003,62778.0,62777.0,0.44225698]
[1719834083490,0.17201103,62778.0,62777.0,0.19126298]
[1719834083692,0.20172003,62778.0,62777.0,0.20126298]
[1719834083838,0.19894829,62778.0,62777.0,0.20126298]
[1719834084052,0.20882807,62778.0,62777.0,0.246415]
[1719834087149,0.20882786,62778.0,62777.0,0.246415]
[1719834087895,0.01982786,62778.0,62777.0,0.328115]
[1719834090032,0.01982786,62778.0,62777.0,0.246415]
[1719834090232,0.01982775,62778.0,62777.0,0.246415]
[1719834090668,0.00994829,62778.0,62777.0,0.246415]
[1719834091072,0.01982837,62778.0,62777.0,0.246415]
[1719834092883,0.01272008,62778.0,62777.0,0.246415]
[1719834093081,0.0198375,62778.0,62777.0,0.246415]
[1719834093444,0.01983728,62778.0,62777.0,0.246415]
[1719834094432,0.01983728,62778.0,62777.0,0.405709]
[1719834095289,0.01983728,62778.0,62777.0,0.924297]
[1719834095549,0.01271986,62778.0,62777.0,0.724297]
[1719834096760,0.01271958,62778.0,62777.0,0.405709]
[1719834097167,0.01983875,62778.0,62777.0,0.405709]
[1719834097717,0.01983875,62778.0,62777.0,0.246415]
[1719834098750,0.01983875,62778.0,62777.0,0.236415]
[1719834098952,0.17912975,62778.0,62777.0,0.19126298]
[1719834099777,0.49771175,62778.0,62777.0,0.19126298]
[1719834099991,0.49771091,62778.0,62777.0,0.19126298]
[1719834100437,1.00589291,62778.0,62777.0,0.028924]
[1719834103248,1.00589323,62778.0,62777.0,0.028924]
[1719834103596,0.99601417,62778.0,62777.0,0.028924]
[1719834103797,1.00589325,62778.0,62777.0,0.028924]
[1719834104413,0.68731125,62778.0,62777.0,0.038924]
[1719834105943,0.68731125,62778.0,62777.0,0.0522304]
[1719834106550,0.36872925,62778.0,62777.0,0.0522304]
[1719834107087,0.01983825,62778.0,62777.0,0.21456938]
[1719834107290,0.01983825,62778.0,62777.0,0.37386338]
[1719834107508,0.00284,62778.0,62777.0,0.37386338]
[1719834110140,0.0099531,62778.0,62777.0,0.45556338]
[1719834115898,0.0099531,62778.0,62777.0,0.37386338]
[1719834116177,0.01983257,62778.0,62777.0,0.45556338]
[1719834116375,0.01983259,62778.0,62777.0,0.45556338]
[1719834116662,0.02195148,62778.0,62777.0,0.45556338]
[1719834117645,0.02195148,62778.0,62777.0,0.77415138]
[1719834117892,0.01271949,62778.0,62777.0,1.09273938]
[1719834118095,0.01271949,62778.0,62777.0,1.48113938]
[1719834120133,0.0127202,62778.0,62777.0,1.48113938]
[1719834120516,0.00284,62778.0,62777.0,1.99972738]
[1719834120710,0.01272017,62778.0,62777.0,1.99972738]
[1719834121826,0.01272017,62778.0,62777.0,1.79972738]
[1719834122833,0.01272019,62778.0,62777.0,1.79972738]
[1719834123547,0.00284,62778.0,62777.0,1.79972738]
[1719834123755,0.01272022,62778.0,62777.0,1.79972738]
[1719834124164,0.01272022,62778.0,62777.0,1.48113938]
[1719834124422,0.01272022,62778.0,62777.0,1.68113938]
[1719834126015,0.01272014,62778.0,62777.0,1.68113938]
[1719834129035,0.01272014,62778.0,62777.0,2.19972738]
[1719834129233,0.00284,62778.0,62777.0,2.51831538]
[1719834129477,0.00284,62778.0,62777.0,2.59008509]
[1719834129667,0.00284,62778.0,62777.0,2.51831538]
[1719834130404,0.00184,62778.0,62777.0,2.57604524]
[1719834130837,0.00184,62778.0,62777.0,2.71400833]
[1719834131037,0.00184,62778.0,62777.0,2.61831538]
[1719834131241,0.00084,62778.0,62777.0,2.60431538]
[1719834131440,0.00084,62778.0,62777.0,2.67600281]
[1719834131662,0.00084,62778.0,62777.0,2.69000281]
[1719834131863,0.00084,62778.0,62777.0,2.60830281]
[1719834132062,0.00084,62778.0,62777.0,2.59031538]
[1719834132512,0.00084,62778.0,62777.0,2.60431538]
[1719834132935,0.00084,62778.0,62777.0,2.28572738]
[1719834133133,0.00084,62778.0,62777.0,2.08332738]
[1719834133408,0.00084,62778.0,62777.0,1.89732738]
[1719834134160,0.00084,62778.0,62777.0,1.91132738]
[1719834134307,0.00084,62778.0,62777.0,1.59732738]
[1719834134511,0.00084,62778.0,62777.0,1.79732738]
[1719834134712,0.00084,62778.0,62777.0,1.81132738]
[1719834135116,0.00084,62778.0,62777.0,1.49273938]
[1719834135903,0.00084,62778.0,62777.0,1.41103938]
[1719834136110,0.00084,62778.0,62777.0,1.49273938]
[1719834136758,0.00084,62778.0,62777.0,1.09273938]
[1719834137315,0.00084,62778.0,62777.0,0.77415138]
[1719834137516,0.00084,62778.0,62777.0,0.29626938]
[1719834138008,0.01320255,62778.0,62777.0,0.29626938]
[1719834138218,0.00084,62778.0,62777.0,0.29626938]
[1719834138365,0.01320255,62778.0,62777.0,0.29626938]
[1719834138569,0.01320255,62778.0,62777.0,0.26826938]
[1719834138775,0.01320255,62778.0,62777.0,0.42756338]
[1719834138975,0.00084,62778.0,62777.0,0.45556338]
[1719834139295,0.00084,62778.0,62777.0,0.77415138]
[1719834139498,0.00084,62778.0,62777.0,0.97415138]
[1719834141088,0.00084,62778.0,62777.0,1.29273938]
[1719834141295,0.00084,62778.0,62777.0,1.09273938]
[1719834141719,0.00084,62778.0,62777.0,1.29273938]
[1719834143185,0.00084,62778.0,62777.0,1.49273938]
[1719834145061,0.00084,62778.0,62777.0,1.29273938]
[1719834147128,0.19384,62778.0,62777.0,0.45556338]
[1719834147447,0.20648494,62778.0,62777.0,0.45556338]
[1719834151619,0.20648494,62778.0,62777.0,0.29626938]
[1719834152236,0.20648494,62778.0,62777.0,0.20126298]
[1719834152440,0.20648494,62778.0,62777.0,0.28296298]
[1719834153184,0.19384,62778.0,62777.0,0.28296298]
[1719834153349,0.20647868,62778.0,62777.0,0.28296298]
[1719834164582,0.12297868,62778.0,62777.0,0.28296298]
[1719834164743,0.12297868,62778.0,62777.0,0.41957142]
[1719834164942,0.11034,62778.0,62777.0,0.41957142]
[1719834166053,0.11034,62778.0,62777.0,0.57886542]
[1719834171208,0.00084,62778.0,62777.0,0.57886542]
[1719834171390,0.00084,62778.0,62777.0,0.89745342]
[1719834171570,0.00084,62778.0,62777.0,1.09745342]
[1719834172798,0.00084,62778.0,62777.0,0.89745342]
[1719834175050,0.00084,62778.0,62777.0,1.21604142]
[1719834175579,0.0107176,62778.0,62777.0,1.41604142]
[1719834175964,0.0107176,62778.0,62777.0,1.21604142]
[1719834176196,0.0107176,62778.0,62777.0,1.41604142]
[1719834176392,0.0107176,62778.0,62777.0,0.81575342]
[1719834176649,0.0107176,62778.0,62777.0,0.89745342]
[1719834177311,0.01071697,62778.0,62777.0,0.89745342]
[1719834177716,0.01071672,62778.0,62777.0,0.89745342]
[1719834180544,0.00084,62778.0,62777.0,0.89745342]
[1719834181240,0.01071853,62778.0,62777.0,0.89745342]
[1719834182950,0.01071857,62778.0,62777.0,0.89745342]
[1719834185197,0.01071857,62778.0,62777.0,1.09745342]
[1719834185629,0.01071857,62778.0,62777.0,0.89745342]
[1719834186269,0.00084,62778.0,62777.0,1.09745342]
[1719834186650,0.0107186,62778.0,62777.0,1.09745342]
[1719834186976,0.01071861,62778.0,62777.0,1.51714142]
[1719834187181,0.01071861,62778.0,62777.0,1.59304142]
[1719834188329,0.01071861,62778.0,62777.0,1.39304142]
[1719834188540,0.01071861,62778.0,62777.0,1.21604142]
[1719834188763,0.01071861,62778.0,62777.0,0.76084498]
[1719834188930,0.01071861,62778.0,62777.0,0.44225698]
[1719834188931,0.08751861,62778.0,62777.0,0.44225698]
[1719834189369,0.08751861,62778.0,62777.0,0.43225698]
[1719834189570,0.10015334,62778.0,62777.0,0.44225698]
[1719834190333,0.10015334,62778.0,62777.0,0.36055698]
[1719834190541,0.10015334,62778.0,62777.0,0.20126298]
[1719834191136,0.10015334,62778.0,62777.0,0.3101354]
[1719834191339,0.10015334,62778.0,62777.0,0.3001354]
[1719834191538,0.10015334,62778.0,62777.0,0.19126298]
[1719834192487,0.10015334,62778.0,62777.0,0.21078523]
[1719834193881,0.10015334,62778.0,62777.0,0.30248523]
[1719834195551,0.02335334,62778.0,62777.0,0.30248523]
[1719834195800,0.01347495,62778.0,62777.0,0.30248523]
[1719834195955,0.02335429,62778.0,62777.0,0.30248523]
[1719834196155,0.02335429,62778.0,62777.0,0.45539583]
[1719834196375,0.02335429,62778.0,62777.0,0.93327783]
[1719834196757,0.01071934,62778.0,62777.0,0.93327783]
[1719834199276,0.01071934,62778.0,62777.0,0.85157783]
[1719834199483,0.01071828,62778.0,62777.0,0.93327783]
[1719834201905,0.01071828,62778.0,62777.0,1.25186583]
[1719834202305,0.01071837,62778.0,62777.0,1.45186583]
[1719834202509,0.01071837,62778.0,62777.0,1.94005383]
[1719834203066,0.01071837,62778.0,62777.0,2.14005383]
[1719834204639,0.00084,62778.0,62777.0,2.14005383]
[1719834204864,0.00084,62778.0,62777.0,2.45864183]
[1719834205091,0.00084,62778.0,62777.0,2.53043553]
[1719834205307,0.00084,62778.0,62777.0,2.45864183]
[1719834205511,0.00084,62778.0,62777.0,2.53040676]
[1719834206158,0.00084,62778.0,62777.0,2.51640676]
[1719834206374,0.00084,62778.0,62777.0,2.44464183]
[1719834206584,0.00084,62778.0,62777.0,2.45864183]
[1719834208013,0.00084,62778.0,62777.0,2.43064183]
[1719834208345,0.00084,62778.0,62777.0,2.45864183]
[1719834208769,0.00084,62778.0,62777.0,2.4924672]
[1719834209025,0.00084,62778.0,62777.0,2.65864183]
[1719834209366,0.00084,62778.0,62777.0,2.70646293]
[1719834210314,0.00084,62778.0,62777.0,2.65864183]
[1719834210518,0.00084,62778.0,62777.0,2.75864183]
[1719834210932,0.00084,62778.0,62777.0,2.85430161]
[1719834211774,0.00084,62778.0,62777.0,2.85425358]
[1719834211982,0.00084,62786.0,62785.0,1.524914]
[1719834212198,0.00084,62786.0,62785.0,2.26151769]
[1719834214532,0.00084,62786.0,62785.0,2.17981769]
[1719834214745,0.00084,62786.0,62785.0,2.26151769]
[1719834214982,0.00084,62786.0,62785.0,2.27551769]
[1719834215600,0.00084,62786.0,62785.0,2.28951769]
[1719834216015,0.00084,62786.0,62785.0,2.48951769]
[1719834216219,0.00084,62786.0,62785.0,2.80806469]
[1719834216423,0.00084,62786.0,62785.0,2.90806469]
[1719834216891,0.00084,62793.0,62792.0,1.524788]
[1719834217035,0.00084,62793.0,62792.0,2.20994562]
[1719834218006,2.0,62800.0,62797.0,0.806215]
[1719834218007,0.00047786,62798.0,62797.0,0.806215]
[1719834218137,0.00047786,62798.0,62797.0,1.05025398]
[1719834218339,0.01044741,62798.0,62797.0,1.05025398]
[1719834218544,0.01044741,62798.0,62797.0,1.20316458]
[1719834218738,0.00047786,62798.0,62797.0,1.40316458]
[1719834219061,0.00047786,62798.0,62797.0,1.49866458]
[1719834219259,0.00047786,62798.0,62797.0,2.09315058]
[1719834220041,0.00047786,62798.0,62797.0,2.10715058]
[1719834220431,0.00047786,62798.0,62797.0,2.09315058]
[1719834221774,0.00047786,62798.0,62797.0,2.10215058]
[1719834221975,0.00047786,62798.0,62797.0,2.10715058]
[1719834222372,0.00047786,62798.0,62797.0,2.12115058]
[1719834223299,0.00047786,62798.0,62797.0,1.74965058]
[1719834223461,0.00047786,62798.0,62797.0,0.83097858]
[1719834223462,0.16867786,62798.0,62797.0,0.83097858]
[1719834223669,0.16867786,62798.0,62797.0,0.91267858]
[1719834223875,0.16867786,62798.0,62797.0,1.23116458]
[1719834224919,0.16867786,62798.0,62797.0,0.83097858]
[1719834225125,0.16867786,62798.0,62797.0,0.91267858]
[1719834225664,0.16867786,62798.0,62797.0,1.23116458]
[1719834226017,0.16867786,62798.0,62797.0,1.25042442]
[1719834228935,0.16867786,62798.0,62797.0,1.13193842]
[1719834229141,0.00047786,62798.0,62797.0,1.45042442]
[1719834229349,0.00047786,62798.0,62797.0,1.65042442]
[1719834229556,0.00047786,62798.0,62797.0,1.83232442]
[1719834229737,0.00047786,62798.0,62797.0,2.15081042]
[1719834229938,0.00047786,62798.0,62797.0,1.83232442]
[1719834230330,0.00047786,62798.0,62797.0,2.15081042]
[1719834230535,0.00047786,62798.0,62797.0,1.83232442]
[1719834230848,0.00047786,62798.0,62797.0,2.15081042]
[1719834231240,0.00047786,62798.0,62797.0,1.96891042]
[1719834232895,0.00047786,62798.0,62797.0,1.45042442]
[1719834233104,0.09427786,62798.0,62797.0,0.93193842]
[1719834233306,0.17447786,62798.0,62797.0,0.84023842]
[1719834233634,0.34712171,62798.0,62797.0,0.19033898]
[1719834233777,0.66560271,62798.0,62797.0,0.19033898]
[1719834233978,0.99403202,62798.0,62797.0,0.028]
[1719834235347,1.00391139,62798.0,62797.0,0.028]
[1719834236816,0.67548208,62798.0,62797.0,0.028]
[1719834237152,0.67548208,62798.0,62797.0,0.20230898]
[1719834237437,0.35700108,62798.0,62797.0,0.20230898]
[1719834237638,0.35700108,62798.0,62797.0,0.21230898]
[1719834238180,0.19776108,62798.0,62797.0,0.21230898]
[1719834240643,0.02376108,62798.0,62797.0,0.37155198]
[1719834241005,0.01388171,62798.0,62797.0,0.37155198]
[1719834241184,0.02376487,62798.0,62797.0,0.37155198]
[1719834241350,0.01388171,62798.0,62797.0,0.37155198]
[1719834241553,0.02376486,62798.0,62797.0,0.36155198]
[1719834241751,0.02376486,62798.0,62797.0,0.20230898]
[1719834242100,0.19876486,62798.0,62797.0,0.20230898]
[1719834243212,0.35800486,62798.0,62797.0,0.20230898]
[1719834243544,0.67648586,62798.0,62797.0,0.20230898]
[1719834243882,0.99496686,62798.0,62797.0,0.20230898]
[1719834244284,0.99496907,62798.0,62797.0,0.20230898]
[1719834244492,0.98508371,62798.0,62797.0,0.20230898]
[1719834244688,0.99496908,62798.0,62797.0,0.20230898]
[1719834244910,1.00491739,62798.0,62797.0,0.20230898]
[1719834245560,0.99496908,62798.0,62797.0,0.20323298]
[1719834245700,1.00491739,62798.0,62797.0,0.20323298]
[1719834247514,0.99496908,62798.0,62797.0,0.20323298]
[1719834247925,0.99496923,62798.0,62797.0,0.20323298]
[1719834249051,0.67648823,62798.0,62797.0,0.21323298]
[1719834250274,0.35800723,62798.0,62797.0,0.21323298]
[1719834251249,0.17312171,62798.0,62797.0,0.21323298]
[1719834251471,0.18300741,62798.0,62797.0,0.21323298]
[1719834251695,0.03168741,62798.0,62797.0,0.21323298]
[1719834252065,0.03168741,62798.0,62797.0,0.37247598]
[1719834252066,0.03168777,62798.0,62797.0,0.37247598]
[1719834252371,0.03168777,62798.0,62797.0,0.69096198]
[1719834252480,0.03168777,62798.0,62797.0,0.76586198]
[1719834253634,0.03168777,62798.0,62797.0,0.69096198]
[1719834253832,0.03168777,62798.0,62797.0,0.77266198]
[1719834254657,0.02180171,62798.0,62797.0,0.77266198]
[1719834254855,0.03168839,62798.0,62797.0,0.77266198]
[1719834255304,0.03168839,62798.0,62797.0,1.09114798]
[1719834255532,0.01828454,62798.0,62797.0,1.09114798]
[1719834257679,0.01828437,62798.0,62797.0,1.09114798]
[1719834259688,0.01828437,62798.0,62797.0,1.29114798]
[1719834259940,0.01828437,62798.0,62797.0,1.09114798]
[1719834261159,0.01828371,62798.0,62797.0,1.09114798]
[1719834264442,0.00839786,62798.0,62797.0,1.09114798]
[1719834264712,0.01828376,62798.0,62797.0,1.09114798]
[1719834267679,0.01828393,62798.0,62797.0,1.09114798]
[1719834271240,0.01828393,62798.0,62797.0,1.29114798]
[1719834272364,0.01828393,62798.0,62797.0,1.09114798]
[1719834273767,0.01828393,62798.0,62797.0,1.29114798]
[1719834277571,0.01828792,62798.0,62797.0,1.29114798]
[1719834280959,0.01828816,62798.0,62797.0,1.29114798]
[1719834281106,0.01828816,62798.0,62797.0,1.60963398]
[1719834282564,0.01828816,62798.0,62797.0,1.40963398]
[1719834282966,0.01828816,62798.0,62797.0,1.60963398]
[1719834283482,0.01828816,62798.0,62797.0,1.40963398]
[1719834283939,0.01828817,62798.0,62797.0,1.40963398]
[1719834287152,0.00839786,62798.0,62797.0,1.40963398]
[1719834287474,0.01828785,62798.0,62797.0,1.40963398]
[1719834290590,0.00839786,62798.0,62797.0,1.40963398]
[1719834290798,0.0182879,62798.0,62797.0,1.40963398]
[1719834291004,0.00839786,62798.0,62797.0,1.40963398]
[1719834291403,0.01828775,62798.0,62797.0,1.40963398]
[1719834291704,0.01828775,62798.0,62797.0,1.09114798]
[1719834292079,0.01828775,62798.0,62797.0,1.00944798]
[1719834292251,0.01828775,62798.0,62797.0,1.09114798]
[1719834293166,0.01828775,62798.0,62797.0,1.29114798]
[1719834293706,0.01828786,62798.0,62797.0,1.29114798]
[1719834296888,0.01828786,62798.0,62797.0,1.90293398]
[1719834297693,0.00839786,62798.0,62797.0,1.90293398]
[1719834297866,0.00839786,62798.0,62797.0,2.29611998]
[1719834298658,0.00839786,62798.0,62797.0,2.26811998]
[1719834299098,0.00839786,62798.0,62797.0,2.28211998]
[1719834300084,0.00839786,62798.0,62797.0,2.29611998]
[1719834300289,0.00839786,62798.0,62797.0,1.19544798]
[1719834300549,0.00839786,62798.0,62797.0,1.27714798]
[1719834300928,0.00839786,62798.0,62797.0,1.49114798]
[1719834301483,0.00839786,62798.0,62797.0,1.47714798]
[1719834301623,0.00764861,62798.0,62797.0,1.27714798]
[1719834301827,0.00764861,62798.0,62797.0,1.49114798]
[1719834302248,0.00764861,62798.0,62797.0,1.20944798]
[1719834302422,0.00764861,62798.0,62797.0,1.29114798]
[1719834302782,0.00764861,62798.0,62797.0,1.27714798]
[1719834302922,0.00764861,62798.0,62797.0,1.29114798]
[1719834303132,0.17684861,62798.0,62797.0,0.18923298]
[1719834303357,0.65456961,62798.0,62797.0,0.17726298]
[1719834303563,0.65456961,62798.0,62797.0,0.20526298]
[1719834303564,0.66882328,62798.0,62797.0,0.20526298]
[1719834303729,0.97965567,62798.0,62797.0,0.20526298]
[1719834303923,0.98441067,62798.0,62797.0,0.22578928]
[1719834304141,0.97446236,62798.0,62797.0,0.21178928]
[1719834304367,0.97446236,62798.0,62797.0,0.18378928]
[1719834304580,0.97446236,62798.0,62797.0,0.19778928]
[1719834304905,0.97446236,62798.0,62797.0,0.0334503]